{"text_format":"3","workbook":"xlsx","n_sheets":2,"sheets":["INICIO","HERRAMIENTA PRESUPUESTARIA"],"not_rendered":{"defined_names":2},"read":"whole","date_system":"1900"}

{"sheet":"INICIO","index":0,"n_rows":7,"n_cols":2,"rows_kept":7}
[null,"INFORMACIÓN SOBRE ESTA PLANTILLA"]
[null,"Realice un seguimiento de su inversión inicial en un sitio web, sus beneficios y costos con esta herramienta de elaboración del presupuesto para un sitio web."]
[null,"Introduzca el nombre de la empresa y la fecha."]
[null,"Escriba la información en las tablas para calcular automáticamente los totales y las métricas de evaluación."]
[null,"Nota:  "]
[null,"Se facilitan instrucciones adicionales en la columna A de la hoja de cálculo HERRAMIENTA PRESUPUESTARIA. Este texto se ha ocultado de forma intencionada. Para eliminar el texto, seleccione la columna A y, a continuación, ELIMINAR. Para mostrar el texto, seleccione la columna A y, a continuación, cambie el color de fuente."]
[null,"Para obtener más información sobre las tablas de la hoja de cálculo, presione las teclas MAYÚS y F10 dentro de una tabla, seleccione la opción TABLA y, a continuación, TEXTO ALTERNATIVO."]

{"sheet":"HERRAMIENTA PRESUPUESTARIA","index":1,"n_rows":43,"n_cols":6,"rows_kept":43,"merged":[[14,1,14,5],[22,1,22,5],[30,1,30,5],[38,1,38,5]]}
["Cree el presupuesto para un sitio web en esta hoja de cálculo. Encontrará instrucciones útiles sobre cómo usar esta hoja de cálculo en las celdas de esta columna. Presione la tecla de flecha abajo para empezar."]
["Escriba el nombre de la empresa en la celda de la derecha.","Nombre de la empresa"]
["El título de esta hoja de cálculo se encuentra en la celda de la derecha.","Herramienta de elaboración del presupuesto para un sitio web"]
["Escriba la fecha en la celda de la derecha.","Fecha"]
["Hay una sugerencia en la celda de la derecha.","Las celdas grises contienen cálculos que no se deben modificar."]
["Escriba la información en la tabla Tasa que comienza en la celda de la derecha. La instrucción siguiente se encuentra en la celda A10.","Datos de la empresa","Tasa"]
[null,"Tasa de retorno necesaria",{"v":0.1,"d":"10%"}]
[null,"Tipo impositivo",{"v":0.3,"d":"30%"}]
[]
["Escriba la información en la tabla Inversión inicial que comienza en la celda de la derecha. La instrucción siguiente se encuentra en la celda A16.","Inversión inicial en el sitio web","AÑO","1","2","3"]
[null,"Hardware (por ejemplo, servidores)",{"v":25000,"d":"25,000.00 €"}]
[null,"Software (por ejemplo, software para crear catálogos de comercio electrónico)",{"v":15000,"d":"15,000.00 €"}]
[null,"Desarrollo (por ejemplo, el diseño y el desarrollo del sitio web por terceros)",{"v":150000,"d":"150,000.00 €"}]
[null,"Total de inversiones iniciales",{"$f":"SUBTOTAL(109,InversiónInicial[AÑO])","v":{"v":190000,"d":"190,000.00 €"}}]
[]
["Escriba la información en la tabla Beneficios que comienza en la celda de la derecha. La instrucción siguiente se encuentra en la celda A24.","Beneficios del sitio web","AÑO","1","2","3"]
[null,"Ventas directas",null,{"v":15000,"d":"15,000.00 €"},{"v":50000,"d":"50,000.00 €"},{"v":75000,"d":"75,000.00 €"}]
[null,"Ventas incrementales resultantes de una eficacia promocional o comercial mejorada",null,{"v":25000,"d":"25,000.00 €"},{"v":25000,"d":"25,000.00 €"},{"v":25000,"d":"25,000.00 €"}]
[null,"Ventas incrementales resultantes del aumento de la participación de partners",null,{"v":25000,"d":"25,000.00 €"},{"v":25000,"d":"25,000.00 €"},{"v":25000,"d":"25,000.00 €"}]
[null,"Costos de desplazamiento reducidos",null,{"v":25000,"d":"25,000.00 €"},{"v":25000,"d":"25,000.00 €"},{"v":25000,"d":"25,000.00 €"}]
[null,"Costos de atención al cliente reducidos",null,{"v":50000,"d":"50,000.00 €"},{"v":50000,"d":"50,000.00 €"},{"v":50000,"d":"50,000.00 €"}]
[null,"Beneficios totales",null,{"$f":"SUBTOTAL(109,Beneficios[1])","v":{"v":140000,"d":"140,000.00 €"}},{"$f":"SUBTOTAL(109,Beneficios[2])","v":{"v":175000,"d":"175,000.00 €"}},{"$f":"SUBTOTAL(109,Beneficios[3])","v":{"v":200000,"d":"200,000.00 €"}}]
[]
["Escriba la información en la tabla Costos que comienza en la celda de la derecha. Los valores de las celdas que contienen fórmulas se calculan automáticamente. La instrucción siguiente se encuentra en la celda A32.","Costos (excepto las inversiones de capital iniciales)","AÑO","1","2","3"]
[null,"Costo de ventas",null,{"v":7500,"d":"7,500.00 €"},{"v":25000,"d":"25,000.00 €"},{"v":37500,"d":"37,500.00 €"}]
[null,"Mantenimiento",null,{"v":15000,"d":"15,000.00 €"},{"v":15000,"d":"15,000.00 €"},{"v":15000,"d":"15,000.00 €"}]
[null,"Administración de proyectos, asistencia al cliente",null,{"v":35000,"d":"35,000.00 €"},{"v":35000,"d":"35,000.00 €"},{"v":35000,"d":"35,000.00 €"}]
[null,"Publicidad en línea, registro en motores de búsqueda",null,{"v":10000,"d":"10,000.00 €"},{"v":10000,"d":"10,000.00 €"},{"v":10000,"d":"10,000.00 €"}]
[null,"Amortización de los gastos de inversión (el cálculo usa un período de tres años)",null,{"$f":"InversiónInicial[[#Totals],[AÑO]]/3","v":{"v":63333.333333333336,"d":"63,333.33 €"}},{"$f":"InversiónInicial[[#Totals],[AÑO]]/3","v":{"v":63333.333333333336,"d":"63,333.33 €"}},{"$f":"InversiónInicial[[#Totals],[AÑO]]/3","v":{"v":63333.333333333336,"d":"63,333.33 €"}}]
[null,"Costos totales",null,{"$f":"SUBTOTAL(109,Costos[1])","v":{"v":130833.33333333334,"d":"130,833.33 €"}},{"$f":"SUBTOTAL(109,Costos[2])","v":{"v":148333.33333333334,"d":"148,333.33 €"}},{"$f":"SUBTOTAL(109,Costos[3])","v":{"v":160833.33333333334,"d":"160,833.33 €"}}]
[]
["Los valores de la tabla Totales que comienza en la celda de la derecha se calculan automáticamente. La instrucción siguiente se encuentra en la celda A40.","Totales","AÑO","1","2","3"]
[null,"Beneficios netos (costos)",null,{"$f":"Beneficios[[#Totals],[1]]-Costos[[#Totals],[1]]","v":{"v":9166.666666666657,"d":"9,166.67 €"}},{"$f":"Beneficios[[#Totals],[2]]-Costos[[#Totals],[2]]","v":{"v":26666.666666666657,"d":"26,666.67 €"}},{"$f":"Beneficios[[#Totals],[3]]-Costos[[#Totals],[3]]","v":{"v":39166.66666666666,"d":"39,166.67 €"}}]
[null,"Impuestos",null,{"$f":"D33*TipoImpositivo","v":{"v":2749.999999999997,"d":"2,750.00 €"}},{"$f":"E33*TipoImpositivo","v":{"v":7999.999999999996,"d":"8,000.00 €"}},{"$f":"F33*TipoImpositivo","v":{"v":11749.999999999996,"d":"11,750.00 €"}}]
[null,"Valor neto",null,{"$f":"D33-D34","v":{"v":6416.666666666661,"d":"6,416.67 €"}},{"v":18666.66666666666,"d":"18,666.67 €"},{"v":27416.66666666666,"d":"27,416.67 €"}]
[null,"Amortización agregada",null,{"$f":"D29","v":{"v":63333.333333333336,"d":"63,333.33 €"}},{"$f":"E29","v":{"v":63333.333333333336,"d":"63,333.33 €"}},{"$f":"F29","v":{"v":63333.333333333336,"d":"63,333.33 €"}}]
[null,"Flujo de efectivo",{"$f":"-InversiónInicial[[#Totals],[AÑO]]","v":{"v":-190000,"d":"-190,000.00 €"}},{"$f":"D35+D36","v":{"v":69750,"d":"69,750.00 €"}},{"v":82000,"d":"82,000.00 €"},{"v":90750,"d":"90,750.00 €"}]
[null,"Flujo de efectivo acumulado",{"$f":"C37","v":{"v":-190000,"d":"-190,000.00 €"}},{"$f":"C38+D37","v":{"v":-120250,"d":"-120,250.00 €"}},{"v":-38250,"d":"-38,250.00 €"},{"v":52500,"d":"52,500.00 €"}]
[]
["Las métricas de evaluación se calculan automáticamente en la tabla Métricas que comienza en la celda de la derecha.","Métricas de evaluación","Valores"]
[null,"Valor actual neto (VAN)",{"$f":"C37+(NPV(TasaRetornoNecesaria,D37:F37))","v":{"v":9359.504132231377,"d":"9,359.50 €"}}]
[null,"Tasa interna de retorno (TIR)",{"$f":"IRR(C37:F37)","v":{"v":0.12655165144706393,"d":"12.66%"}}]
[null,"Período de amortización (en años)",{"$f":"IF(F38<=0,\"Supera los 3 años\",IF(E38<=0,(F37-F38)/F37+2,IF(D38<=0,(E37-E38)/E37+1,IF(C38<=0,(D37-D38)/D37,\"NA\"))))","v":{"v":2.4214876033057853,"d":"2.42"}}]